[Event "SixDays Budapest IM-B January 2024"]
[Site "Budapest"]
[Date "2024.01.28"]
[Round "2.4"]
[White "Varadi, Viktor"]
[Black "Ihnat, Marek"]
[Result "1-0"]
[ECO "B78"]
[WhiteElo "2368"]
[BlackElo "2111"]
[Annotator "TA"]
[PlyCount "69"]
[EventDate "2024.01.26"]
[EventType "tourn"]
[EventCountry "HUN"]
[SourceTitle "playchess.com"]
[Source "ChessBase"]
[SourceQuality "1"]
[TimeControl "5400+30"]

{[%evp 24,69,47,27,29,47,41,45,43,21,28,40,41,27,64,44,93,91,93,87,92,66,174,194,188,183,183,204,357,346,779,716,599,444,415,419,421,419,412,416,435,425,1537,1609,1649,1490,29991,29988]} 1. e4 {[%emt 0:00:02]} c5 {[%emt 0:00:09]} 2. Nf3 {[%emt 0:00:07]} d6 {[%emt 0:00:14]} 3. d4 {[%emt 0:00:08]} cxd4 {[%emt 0:00:07]} 4. Nxd4 {[%emt 0:00:06]} Nf6 {[%emt 0:00:07]} 5. Nc3 {[%emt 0:00:06]} g6 {[%emt 0:00:09]} 6. Be3 {[%emt 0:00:12]} Bg7 {[%emt 0:00:08]} 7. f3 {[%emt 0:00:11]} O-O {[%emt 0:00:23]} 8. Qd2 {[%emt 0:00:10]} Nc6 {[%emt 0:00:10]} 9. Bc4 {[%emt 0:00:17]} Bd7 {[%emt 0:00:36]} 10. O-O-O {[%emt 0:00:17]} Rc8 {[%emt 0:00:05]} 11. Bb3 {[%emt 0:00:19]} Nxd4 {[%emt 0:01:53]} 12. Bxd4 {[%emt 0:00:10]} b5 {[%emt 0:00:24]} 13. Nd5 {[%emt 0:04:10]} Nxd5 {[%emt 0:01:18]} 14. Bxg7 {[%emt 0:00:51]} Kxg7 {[%emt 0:00:18]} 15. exd5 {[%emt 0:00:33]} Qb6 {[%emt 0:05:20] White is slightly better.} 16. a3 {[%emt 0:06:10]} a5 {[%emt 0:00:15][%cal Ba7a5,Ba5a4][%mdl 32] ...a4 would now be deadly.} 17. Rhe1 {[%emt 0:07:52]} Rfe8 {[%emt 0:00:45]} 18. g4 {[%emt 0:05:19]} Rc7 {[%emt 0:08:34]} 19. Re2 {[%emt 0:05:10]} Rb7 {[%emt 0:20:05]} (19... Rec8 $14 20. Qf4 (20. Rxe7 $2 a4 $19) 20... Be8) 20. Rde1 $16 {[%emt 0:09:08] White is more active. White now steadily converts the win.} Bc8 {[%emt 0:07:22]} 21. h4 {[%emt 0:10:28][%cal Bh2h4,Bh4h5,Bh5g6][%mdl 32]} a4 {[%emt 0:13:53]} 22. Ba2 {[%emt 0:07:17] aiming for h5.} Qc5 {[%emt 0:06:58]} (22... b4 $14) 23. h5 $18 {[%emt 0:04:39]} b4 {[%emt 0:02:20]} 24. axb4 {[%emt 0:00:34]} Rxb4 {[%emt 0:02:21][%cal Oa4a3] [#]} 25. hxg6 $1 {[%emt 0:07:07]} (25. Rxe7 Rxe7 26. Rxe7 Qg1+ 27. Re1 Qd4 28. Qxd4+ Rxd4 $11) 25... hxg6 $2 {[%emt 0:01:08]} (25... fxg6 {keeps fighting.} 26. Rxe7+ Rxe7 27. Rxe7+ Kf6) 26. Rh2 {[%emt 0:03:19] Hoping for Qh6+.} (26. Rxe7 Rxe7 27. Rxe7 Ba6 $14) 26... Qd4 $2 {[%emt 0:05:09]} (26... e5 27. dxe6 Bxe6 28. Qh6+ Kf6) 27. Qh6+ {[%emt 0:01:42]} Kf6 {[%emt 0:00:43]} 28. Qh4+ {[%emt 0:00:12]} Kg7 {[%emt 0:00:26]} 29. c3 {[%emt 0:01:11] White wants to mate with Qh6+.} (29. Rxe7 Qxb2+ 30. Kd2 Qd4+ (30... Rd4+ $2 31. Ke3 $19) 31. Kc1 Qa1+ (31... Qg1+ $2 32. Qe1 $19) 32. Kd2 Rd4+ 33. Ke3 Qc3+ 34. Kf2 Qd2+ (34... Qxc2+ 35. Kg3 $16) 35. Kg3 Qf4+ 36. Kg2 Rd2+ 37. Kg1 Rxh2 38. Qxh2 Qc1+ (38... Qxf3 $2 39. Rxe8 Qxg4+ 40. Kf2 $18) (38... Qxh2+ $2 39. Kxh2 Rxe7 40. Kg3 $19) 39. Kf2 Qxc2+ (39... Rxe7 $2 40. Kg3 $19) 40. Kf1 Ba6+ (40... Qxh2 41. Rxe8 Ba6+ 42. Ke1 Qxa2 43. f4 a3 44. f5 Qh2 45. f6+ Kh7 46. Re7 a2 47. Rxf7+ Kh6 48. g5+ Kxg5 49. Rg7 a1=Q#) 41. Kg1 Qd1+ (41... Rxe7 $2 42. Qxc2 Re1+ 43. Kf2 $18) 42. Kg2 Rxe7 43. Kg3 Re2 (43... Qe1+ 44. Qf2 Qxf2+ 45. Kxf2 Re2+ 46. Kg3 Rxa2 47. Kh4 Rc2 48. Kg5 a3 49. Kf4 a2 50. Kg3 a1=Q 51. f4 Qe1+ 52. Kf3 Qf2+ 53. Ke4 Re2#) (43... Qe1+ 44. Qf2 Qxf2+ 45. Kxf2 Re2+ 46. Kg3 Rxa2 47. Kh3 a3 48. f4 Re2 49. g5 a2 50. f5 a1=Q 51. f6+ Kg8 52. Kg3 Qe5+ 53. Kg4 Bc8+ 54. Kh4 Qh2#)) 29... Qf4+ {[%emt 0:00:20]} 30. Kb1 {[%emt 0:01:33][%cal Bc1b1,Bb1b2,Bb2c2][%mdl 32]} Rb8 {[%emt 0:04:49] [#]} 31. Re4 {[%emt 0:01:19] Wards off e5} (31. Rxe7 $2 {too greedy.} Bf5+ 32. gxf5 Qxh4 33. Rxh4 Rxe7 34. Rxa4 Re1+ (34... gxf5 $2 35. Bc4 $19) 35. Kc2 Re2+ (35... gxf5 $2 36. Bc4 $19) 36. Kc1 Rbxb2 $19 (36... gxf5 $2 37. Bb1 $19)) 31... Bf5 {[%emt 0:02:20]} 32. gxf5 {[%emt 0:00:43][%cal Bg4f5,Bf5f6][%mdl 32]} Rxb2+ {[%emt 0:00:12]} (32... Qxf5 $142 33. Qh6+ Kf6) 33. Kxb2 {[%emt 0:00:50] Qh7+ would kill now.} Rb8+ {[%emt 0:00:06]} 34. Kc2 {[%emt 0:00:07]} Qxf3 {[%emt 0:00:29]} 35. f6+ {[%emt 0:00:24] Weighted Error Value: White=0.16 (very precise) /Black=0.50.  Mistake:       	---       	Black=5      Inaccurate:     	---       	Black=1      OK:         	White=10    	Black=4      Best:        	White=3     	Black=3      Strong:       	White=1     	---} 1-0

[Event "SixDays Budapest IM-B January 2024"]
[Site "Budapest"]
[Date "2024.01.28"]
[Round "2.5"]
[White "Mouhamad, Joachim"]
[Black "Nemitz, Alfred"]
[Result "0-1"]
[ECO "C84"]
[WhiteElo "2316"]
[BlackElo "2223"]
[Annotator "TA"]
[PlyCount "48"]
[EventDate "2024.01.26"]
[EventType "tourn"]
[EventCountry "HUN"]
[SourceTitle "playchess.com"]
[Source "ChessBase"]
[SourceQuality "1"]
[TimeControl "5400+30"]

{[%evp 14,48,15,12,27,21,12,7,14,14,35,0,11,3,2,-6,0,-29,37,-99,-58,-61,-70,-48,0,-196,-197,-179,-205,-209,-209,-419,-364,-499,-498,-2199,-2092]} 1. e4 {[%emt 0:00:05]} e5 {[%emt 0:00:07]} 2. Nf3 {[%emt 0:00:22]} Nc6 {[%emt 0:00:05]} 3. Bb5 {[%emt 0:00:24]} a6 {[%emt 0:00:04]} 4. Ba4 {[%emt 0:00:12]} Nf6 {[%emt 0:00:06]} 5. O-O {[%emt 0:00:12]} Be7 {[%emt 0:00:04]} 6. d3 {[%emt 0:00:16]} b5 {[%emt 0:00:12]} 7. Bb3 {[%emt 0:00:02]} d6 {[%emt 0:00:19]} 8. c3 {[%emt 0:00:09]} Na5 {[%emt 0:00:47]} 9. Bc2 {[%emt 0:00:32]} c5 {[%emt 0:00:03]} 10. d4 {[%emt 0:00:50]} cxd4 {[%emt 0:15:42] Die Stellung ist ausgeglichen.} 11. cxd4 {[%emt 0:00:10]} O-O {[%emt 0:00:53]} 12. h3 {[%emt 0:00:40]} d5 {[%emt 0:07:59]} 13. exd5 {[%emt 0:12:36] Schwarz muss nun d6 beachten.} exd4 {[%emt 0:07:13]} 14. Qxd4 {[%emt 0:04:37]} Bb7 {[%emt 0:03:53]} 15. Rd1 {[%emt 0:24:48] d6 ist eine echte Drohung.} Rc8 {[%emt 0:11:10]} ({Günstiger ist} 15... Qxd5 $11 16. Qc3 Qc5) 16. Qd2 {[%emt 0:23:46]} (16. Nc3 $14 {behält die Oberhand.}) 16... Bxd5 {[%emt 0:15:32]} 17. Nd4 {[%emt 0:05:52]} Nc4 {[%emt 0:02:09] Schwarz steht aktiver.} 18. Qf4 {[%emt 0:02:37]} Qb6 {[%emt 0:08:45]} (18... Bd6 $15 {scheint genauer.} 19. Qh4 Ne4) 19. b3 $2 {[%emt 0:06:25]} (19. Nf5 $11 {und Weiss ist OK.} Bc5 20. Nc3) 19... Bd6 $19 {[%emt 0:02:38]} 20. Qh4 {[%emt 0:00:27]} Ne5 {[%emt 0:00:40]} 21. Be3 {[%emt 0:01:52] [#]} Qb7 $1 {[%emt 0:01:44]} 22. f3 $2 {[%emt 0:07:31] [#]} (22. Nf5 Bxg2 (22... Rxc2 23. Qg5 $15) 23. Nd2) 22... Bxf3 $1 {[%emt 0:05:16][%mdl 512]} 23. Rd2 {[%emt 0:06:22]} (23. Rf1 Rxc2) 23... Be4 {[%emt 0:01:37] Und ...Rfe8 würde nun gewinnen.} 24. Bxe4 {[%emt 0:01:05]} (24. Re2 $142 Bxc2 25. Rxc2 Rxc2 26. Nxc2) 24... Rc1+ {[%emt 0:00:35] Gewichteter Fehlerwert: Weiß=0.94/Schwarz=0.13 (sehr präzise) .  Verlustzug:     	Weiß=1     	---        Fehler:       	Weiß=3     	Schwarz=2     Ungenau:       	Weiß=3     	Schwarz=1     OK:         	Weiß=5     	Schwarz=7     Bester:       	---       	Schwarz=3     Brilliant:      	---       	Schwarz=1} 0-1

[Event "SixDays Budapest IM-B January 2024"]
[Site "Budapest"]
[Date "2024.01.28"]
[Round "3.1"]
[White "Nemitz, Alfred"]
[Black "Sgircea, Silvia-Raluca"]
[Result "1/2-1/2"]
[ECO "D36"]
[WhiteElo "2223"]
[BlackElo "2242"]
[Annotator "NA RC"]
[PlyCount "63"]
[EventDate "2024.01.26"]
[EventType "tourn"]
[EventCountry "HUN"]
[SourceTitle "playchess.com"]
[Source "ChessBase"]
[SourceQuality "1"]
[TimeControl "5400+30"]

1. d4 {[%emt 0:00:53]} d5 {[%emt 0:00:06]} 2. c4 {[%emt 0:00:26]} e6 {[%emt 0:00:10]} 3. Nc3 {[%emt 0:00:04]} Nf6 {[%emt 0:00:04]} 4. cxd5 {[%emt 0:00:02]} exd5 {[%emt 0:00:07]} 5. Bg5 {[%emt 0:00:06]} c6 {[%emt 0:00:18]} 6. Qc2 {[%emt 0:00:16]} h6 {[%emt 0:00:33]} 7. Bh4 {[%emt 0:00:44]} Be7 {[%emt 0:00:31]} 8. e3 {[%emt 0:00:06]} O-O {[%emt 0:00:17]} 9. Bd3 {[%emt 0:01:15]} Re8 {[%emt 0:00:17]} 10. Nge2 {[%emt 0:00:45]} a5 {[%emt 0:00:13]} 11. O-O {[%emt 0:00:59]} Na6 {[%emt 0:00:06]} 12. a3 {[%emt 0:00:46]} Nc7 {[%emt 0:00:10]} 13. Rae1 {[%emt 0:01:57]} Ne6 {[%emt 0:01:40]} 14. f3 {[%emt 0:00:34]} b5 {[%emt 0:26:06]} 15. Bf2 {[%emt 0:10:18]} Ba6 {[%emt 0:02:47]} 16. Kh1 {[%emt 0:07:02]} b4 {[%emt 0:03:40]} 17. Bxa6 {[%emt 0:03:29]} Rxa6 {[%emt 0:00:06]} 18. Na4 {[%emt 0:00:58]} Qa8 {[%emt 0:04:22]} 19. axb4 {[%emt 0:01:07]} axb4 {[%emt 0:00:08]} 20. b3 {[%emt 0:00:11]} Rc8 {[%emt 0:13:27]} 21. e4 {[%emt 0:06:12]} c5 {[%emt 0:06:00]} 22. exd5 {[%emt 0:01:19]} cxd4 {[%emt 0:02:14]} 23. Qd3 {[%emt 0:08:21]} Nxd5 {[%emt 0:00:38]} 24. Nxd4 {[%emt 0:00:21]} Nxd4 {[%emt 0:04:32]} 25. Bxd4 {[%emt 0:02:23]} Bf8 {[%emt 0:04:39]} 26. Rd1 {[%emt 0:04:04]} Rd6 {[%emt 0:13:15]} 27. Qb1 {[%emt 0:14:30]} Re8 {[%emt 0:06:04]} 28. Rfe1 {[%emt 0:05:00]} Rdd8 {[%emt 0:02:55]} 29. Rxe8 {[%emt 0:06:37]} Rxe8 {[%emt 0:00:01]} 30. Qd3 {[%emt 0:00:31]} Nf4 {[%emt 0:00:48]} 31. Qf5 {[%emt 0:03:03]} Ne6 {[%emt 0:00:08]} 32. Bb2 {[%emt 0:00:52]} 1/2-1/2

[Event "SixDays Budapest IM-B January 2024"]
[Site "Budapest"]
[Date "2024.01.28"]
[Round "3.2"]
[White "Ihnat, Marek"]
[Black "Mouhamad, Joachim"]
[Result "0-1"]
[ECO "B62"]
[WhiteElo "2111"]
[BlackElo "2316"]
[Annotator "TA"]
[PlyCount "70"]
[EventDate "2024.01.26"]
[EventType "tourn"]
[EventCountry "HUN"]
[SourceTitle "playchess.com"]
[Source "ChessBase"]
[SourceQuality "1"]
[TimeControl "5400+30"]

{[%evp 15,70,27,37,22,32,17,32,25,45,44,53,52,70,-25,-18,-22,-35,-29,-27,-41,-27,-61,-39,-58,-18,-116,-45,-43,-31,-25,-18,-56,-50,-165,-165,-161,-153,-150,-118,-175,-161,-184,-175,-322,-308,-302,-241,-252,-240,-220,-177,-262,-268,-271,-262,-310,-235]} 1. e4 {[%emt 0:00:04]} c5 {[%emt 0:00:13]} 2. Nf3 {[%emt 0:00:08]} d6 {[%emt 0:00:11]} 3. d4 {[%emt 0:00:06]} cxd4 {[%emt 0:00:09]} 4. Nxd4 {[%emt 0:00:06]} Nf6 {[%emt 0:00:09]} 5. Nc3 {[%emt 0:00:04]} Nc6 {[%emt 0:00:31]} 6. Bg5 {[%emt 0:00:07]} e6 {[%emt 0:00:07]} 7. Qd3 {[%emt 0:00:05]} Be7 {[%emt 0:00:31]} 8. O-O-O {[%emt 0:00:07]} O-O {[%emt 0:00:19]} 9. h4 {[%emt 0:00:12]} Bd7 {[%emt 0:00:35]} 10. Be2 {[%emt 0:03:07]} Rc8 {[%emt 0:05:47]} 11. Kb1 {[%emt 0:01:42] White is slightly better.} Qb6 {[%emt 0:14:15]} 12. Be3 {[%emt 0:08:41][%cal Od4e6]} Nxd4 {[%emt 0:08:22]} 13. Bxd4 {[%emt 0:02:14]} Qa5 {[%emt 0:01:26][%cal Ob7b5]} 14. Be3 {[%emt 0:07:26] [#]} ({White should play} 14. Qd2 $14) 14... Rxc3 $1 {[%emt 0:07:20]} 15. Qxc3 {[%emt 0:07:39]} Qxc3 {[%emt 0:00:09]} 16. bxc3 {[%emt 0:00:04]} Nxe4 {[%emt 0:00:15]} 17. Bd4 {[%emt 0:06:10][%cal Oe2d3]} Rc8 {[%emt 0:13:27][%mdl 1024] Black has compensation.} 18. Bf3 {[%emt 0:04:31]} Nc5 {[%emt 0:00:36][%cal Be4c5,Bc5a4,Ba4c3][%mdl 32] Black is more active.} 19. Kc1 {[%emt 0:11:36]} b6 {[%emt 0:00:30]} 20. g3 {[%emt 0:01:43]} (20. c4 $11 {keeps the balance.}) 20... Bb5 {[%emt 0:00:39]} (20... Na4 $17 21. Rd3 e5 22. Bxe5 Bf5 23. Bxd6 (23. Bb7 $2 Rc7 $19) 23... Bxd3 24. Bxe7 Bxc2 (24... Rxc3 25. Bd1 $11)) 21. Rhe1 {[%emt 0:01:47]} Bc4 {[%emt 0:02:38]} 22. Kd2 {[%emt 0:01:51]} Rc7 {[%emt 0:03:07]} (22... Bxa2 $2 23. Ra1 Bc4 24. Rxa7 $18) 23. a3 {[%emt 0:04:43]} Na4 {[%emt 0:02:03] ...e5 is the strong threat.} 24. Bg2 {[%emt 0:13:38] [#]} (24. Rb1 $1 $15) 24... e5 $1 $19 {[%emt 0:03:08]} 25. Be3 {[%emt 0:00:17]} Be6 {[%emt 0:00:21][%cal Od6d5]} 26. Ra1 {[%emt 0:04:51]} f6 {[%emt 0:02:47][%cal Od6d5]} 27. Bf1 {[%emt 0:03:18]} (27. f4 $17 {was worth a try.}) 27... Kf7 {[%emt 0:02:21]} ({Worse is} 27... Rxc3 28. Bb5 Rc4 29. f4 $14) 28. Bb5 {[%emt 0:02:01]} Nxc3 {[%emt 0:00:27]} 29. a4 {[%emt 0:00:42]} (29. Bd3 {keeps fighting.}) 29... d5 {[%emt 0:00:30]} 30. Kc1 {[%emt 0:01:29]} d4 {[%emt 0:02:57]} 31. Bd2 {[%emt 0:00:16] White is weak on the dark squares} Bb4 {[%emt 0:02:40]} ({Don't take} 31... Nxb5 32. axb5 Bf5 (32... Bb3 $2 33. Kb2 $19) 33. Ra2) 32. Bd3 {[%emt 0:01:43]} g6 {[%emt 0:03:13]} 33. h5 {[%emt 0:01:11]} (33. f4 $142) 33... Bd5 {[%emt 0:00:25] Black has a decisive advantage.} ({Don't play} 33... gxh5 34. f4 Ba2 (34... e4 $2 35. Bxe4 Nxe4 36. Rxe4 $19) 35. Kb2 Nxa4+ 36. Kc1) 34. hxg6+ {[%emt 0:00:26]} hxg6 {[%emt 0:00:03]} 35. g4 {[%emt 0:06:49]} Re7 {[%emt 0:03:27] Weighted Error Value: White=0.36/Black=0.15 (very precise) .  Mistake:       	White=6     	Black=1      Inaccurate:     	White=2     	Black=1      OK:         	White=7     	Black=8      Best:        	---       	Black=2      Strong:       	---       	Black=1} 0-1

[Event "SixDays Budapest IM-B January 2024"]
[Site "Budapest"]
[Date "2024.01.28"]
[Round "3.3"]
[White "Nemeth, Zoltan"]
[Black "Varadi, Viktor"]
[Result "1/2-1/2"]
[ECO "A89"]
[WhiteElo "2194"]
[BlackElo "2368"]
[Annotator "TA"]
[PlyCount "22"]
[EventDate "2024.01.26"]
[EventType "tourn"]
[EventCountry "HUN"]
[SourceTitle "playchess.com"]
[Source "ChessBase"]
[SourceQuality "1"]
[TimeControl "5400+30"]

{[%evp 16,22,73,51,53,0,11,22,6]} 1. d4 {[%emt 0:00:03]} f5 {[%emt 0:00:05]} 2. g3 {[%emt 0:00:23]} Nf6 {[%emt 0:00:08]} 3. Bg2 {[%emt 0:00:04]} g6 {[%emt 0:00:11]} 4. Nf3 {[%emt 0:00:07]} Bg7 {[%emt 0:00:10]} 5. O-O {[%emt 0:00:05]} O-O {[%emt 0:00:08]} 6. c4 {[%emt 0:00:04]} d6 {[%emt 0:00:08]} 7. Nc3 {[%emt 0:00:07]} Nc6 {[%emt 0:00:20]} 8. d5 {[%emt 0:00:23]} Na5 {[%emt 0:00:12]} 9. Qd3 {[%emt 0:02:33]} e5 {[%emt 0:02:06] [#] Droht stark ...e4.} 10. e4 {[%emt 0:00:48]} ({Günstiger ist} 10. dxe6 $14 Bxe6 11. b3) 10... fxe4 {[%emt 0:01:17]} 11. Nxe4 {[%emt 0:00:20]} Nxe4 {[%emt 0:00:08] Gewichteter Fehlerwert: Weiß=0.36/Schwarz=0.06 (makellos) .  Fehler:       	Weiß=1     	---} 1/2-1/2

[Event "SixDays Budapest IM-B January 2024"]
[Site "Budapest"]
[Date "2024.01.28"]
[Round "3.4"]
[White "Kolimar, Kristof Pal"]
[Black "Egresi, Mate"]
[Result "1-0"]
[ECO "B38"]
[WhiteElo "2304"]
[BlackElo "2389"]
[Annotator "TA"]
[PlyCount "83"]
[EventDate "2024.01.26"]
[EventType "tourn"]
[EventCountry "HUN"]
[SourceTitle "playchess.com"]
[Source "ChessBase"]
[SourceQuality "1"]
[TimeControl "5400+30"]

{[%evp 23,83,54,58,52,44,50,50,48,55,43,59,70,52,23,44,13,70,78,74,62,50,46,85,81,95,38,107,101,166,164,366,374,368,365,363,363,343,353,301,225,257,241,254,260,238,216,230,16,29,20,8,26,25,23,1655,2319,29977,29978,29976,29978,29977,29978]} 1. e4 {[%emt 0:00:02]} c5 {[%emt 0:01:43]} 2. Nf3 {[%emt 0:00:04]} Nc6 {[%emt 0:00:37]} 3. d4 {[%emt 0:00:04]} cxd4 {[%emt 0:02:01]} 4. Nxd4 {[%emt 0:00:02]} g6 {[%emt 0:01:34]} 5. c4 {[%emt 0:00:03]} Bg7 {[%emt 0:00:19]} 6. Be3 {[%emt 0:00:04]} d6 {[%emt 0:02:08]} 7. Nc3 {[%emt 0:00:08]} Nf6 {[%emt 0:00:11]} 8. f3 {[%emt 0:01:00]} O-O {[%emt 0:00:26]} 9. Be2 {[%emt 0:01:00]} Bd7 {[%emt 0:01:17]} 10. Qd2 {[%emt 0:02:12]} Nxd4 {[%emt 0:00:34]} 11. Bxd4 {[%emt 0:00:06]} Bc6 {[%emt 0:00:04]} 12. O-O {[%emt 0:07:00]} Nd7 {[%emt 0:00:05]} 13. Bf2 {[%emt 0:01:31]} Qa5 {[%emt 0:05:37]} 14. Rfc1 {[%emt 0:05:44]} Rfc8 {[%emt 0:22:42]} 15. Rab1 {[%emt 0:03:30] White is slightly better.} Qd8 {[%emt 0:00:59]} 16. b4 {[%emt 0:03:29] b5 would now be deadly.} Ne5 {[%emt 0:06:52]} 17. f4 {[%emt 0:24:21]} Nd7 {[%emt 0:00:12]} 18. Bd3 {[%emt 0:01:34]} Nf8 {[%emt 0:13:41]} 19. Nd5 {[%emt 0:05:00]} Ne6 {[%emt 0:02:52]} (19... e5 $11) 20. Bh4 $36 {[%emt 0:04:13][%mdl 2048] White is in control.} Bxd5 {[%emt 0:18:57]} 21. exd5 {[%emt 0:02:00]} Nf8 {[%emt 0:03:14] Black is weak on the light squares} 22. Re1 {[%emt 0:06:15]} Qb6+ {[%emt 0:02:41]} 23. Bf2 {[%emt 0:00:17]} Qc7 {[%emt 0:00:38]} 24. c5 {[%emt 0:04:18]} (24. h4 $16) 24... dxc5 {[%emt 0:02:52]} ({Black should play} 24... a5 $14) 25. bxc5 $16 {[%emt 0:00:08]} Rd8 {[%emt 0:00:08]} (25... b6 $16) 26. Be4 $18 {[%emt 0:01:18][%cal Od5d6]} Ne6 $2 {[%emt 0:01:53] [#]} (26... Rab8 27. Rec1 h5) 27. Qc1 $1 {[%emt 0:04:55]} Nd4 {[%emt 0:01:03]} 28. Rb4 {[%emt 0:02:30]} Nf5 {[%emt 0:01:11] [#]} 29. d6 $1 {[%emt 0:06:57][%mdl 512]} exd6 {[%emt 0:02:39]} (29... Nxd6 30. cxd6) 30. Rxb7 {[%emt 0:00:59]} (30. Bxb7 Rab8 31. c6 a5 $16) 30... Qa5 {[%emt 0:00:01]} 31. c6 {[%emt 0:02:45] aiming for c7.} Bd4 {[%emt 0:01:22]} 32. Bxf5 {[%emt 0:04:44]} Bxf2+ {[%emt 0:00:08]} 33. Kxf2 {[%emt 0:00:01]} Qxf5 {[%emt 0:00:10]} 34. Ree7 {[%emt 0:00:30]} Qd5 {[%emt 0:01:47]} 35. Qb2 $2 {[%emt 0:03:15] Active counter play!} (35. Rxa7 Rxa7 36. Rxa7 Rc8 $11) (35. c7 $18 Rf8 36. Rb2) 35... Re8 $11 {[%emt 0:02:15]} 36. Qf6 {[%emt 0:04:50][%cal Rf6f7] Chess con chili.} Rxe7 {[%emt 0:01:12]} 37. Rxe7 {[%emt 0:00:28] And now c7 would win.} Qxa2+ {[%emt 0:01:55] KQR-KQR} 38. Kg3 {[%emt 0:00:07][%cal Oc6c7] Black must now prevent c7!} Rb8 $2 {[%emt 0:00:34][%mdl 8192] Loses the game.} (38... Qa3+ $11 39. Kh4 Rf8) 39. Qc3 $18 {[%emt 0:01:48] White wants to mate with c7.} (39. Qxd6 {leads to mate.} Rb3+ 40. Kh4 Qf2+ 41. Kg5 h6+ (41... Qxg2+ $2 {too greedy.} 42. Kf6 $18) 42. Kf6 Qh4+ (42... Qxg2 43. Qd8+ Kh7 44. Rxf7#) 43. Ke5 Qh5+ (43... Qxh2 44. Re8+ Kh7 45. Kf6 Qh4+ 46. Kxf7) (43... Re3+ $2 44. Kd4 $19) 44. f5 Qxf5+ (44... gxf5 45. Qd8+ Kg7 46. Qd4 $16) 45. Kd4 Qd3+ 46. Ke5 f6+ (46... Rb5+ 47. Kf4 Rf5+ 48. Kg4 h5+ 49. Kh4 Qc4+ 50. Re4 Qxe4+ 51. Qf4 Qxf4+ 52. Kh3 Qg4#) 47. Qxf6 Rb5+ 48. Kf4 Rb4+) 39... Kf8 {[%emt 0:00:52]} 40. Rb7 {[%emt 0:00:17] White mates.} Rxb7 {[%emt 0:00:26]} 41. cxb7 {[%emt 0:00:01]} ({Don't blunder} 41. c7 $2 Rxc7 42. Qxc7 Qa3+ 43. Kf2 Qc5+ 44. Qxc5 dxc5 $19) 41... Qb1 {[%emt 0:00:08] [#]} 42. b8=Q+ $1 {[%emt 0:00:02][%mdl 512] Weighted Error Value: White=0.22 (precise) /Black=0.38.  Loses game:     	---       	Black=1      Missed win:     	White=1     	---        Mistake:       	White=1     	Black=4      Inaccurate:     	White=2     	Black=2      OK:         	White=8     	Black=13     Best:        	White=2     	---        Strong:       	White=1     	---} 1-0

[Event "SixDays Budapest IM-B January 2024"]
[Site "Budapest"]
[Date "2024.01.28"]
[Round "3.5"]
[White "Semprun Martinez, Fernando"]
[Black "Srinath, Rao S.V."]
[Result "0-1"]
[ECO "E81"]
[WhiteElo "2071"]
[BlackElo "2260"]
[Annotator "NA RC"]
[PlyCount "64"]
[EventDate "2024.01.26"]
[EventType "tourn"]
[EventCountry "HUN"]
[SourceTitle "playchess.com"]
[Source "ChessBase"]
[SourceQuality "1"]
[TimeControl "5400+30"]

1. d4 {[%emt 0:00:30]} Nf6 {[%emt 0:00:09]} 2. c4 {[%emt 0:00:00]} g6 {[%emt 0:00:05]} 3. Nc3 {[%emt 0:00:00]} Bg7 {[%emt 0:00:04]} 4. e4 {[%emt 0:00:00]} d6 {[%emt 0:00:03]} 5. f3 {[%emt 0:00:00]} O-O {[%emt 0:00:11]} 6. Be3 {[%emt 0:00:00]} c5 {[%emt 0:00:19]} 7. Nge2 {[%emt 0:00:16]} Nc6 {[%emt 0:00:23]} 8. d5 {[%emt 0:00:03]} Ne5 {[%emt 0:00:06]} 9. Ng3 {[%emt 0:00:08]} h5 {[%emt 0:01:22]} 10. Be2 {[%emt 0:00:01]} h4 {[%emt 0:01:52]} 11. Nf1 {[%emt 0:00:02]} e6 {[%emt 0:00:06]} 12. Bg5 {[%emt 0:00:10]} h3 {[%emt 0:01:23]} 13. Ne3 {[%emt 0:00:12]} exd5 {[%emt 0:15:02]} 14. Nexd5 {[%emt 0:00:54]} hxg2 {[%emt 0:02:49]} 15. Rg1 {[%emt 0:00:21]} Be6 {[%emt 0:07:53]} 16. Qd2 {[%emt 0:01:23]} Nc6 {[%emt 0:17:36]} 17. Rxg2 {[%emt 0:11:16]} Re8 {[%emt 0:03:16]} 18. O-O-O {[%emt 0:02:20]} Nd4 {[%emt 0:09:23]} 19. h4 {[%emt 0:02:31]} Bxd5 {[%emt 0:03:56]} 20. Nxd5 {[%emt 0:01:12]} Ne6 {[%emt 0:00:04]} 21. Bxf6 {[%emt 0:06:35]} Bxf6 {[%emt 0:00:23]} 22. h5 {[%emt 0:00:36]} Bg5 {[%emt 0:05:44]} 23. f4 {[%emt 0:00:49]} Nxf4 {[%emt 0:00:30]} 24. Nxf4 {[%emt 0:11:29]} Rxe4 {[%emt 0:00:04]} 25. Rf1 {[%emt 0:03:01]} Qf6 {[%emt 0:00:34]} 26. Rgf2 {[%emt 0:13:34]} Rae8 {[%emt 0:03:13]} 27. Bd3 {[%emt 0:08:01]} Rd4 {[%emt 0:00:45]} 28. Kc2 {[%emt 0:04:53]} b5 {[%emt 0:11:42]} 29. Nd5 {[%emt 0:05:59]} Qe5 {[%emt 0:02:05]} 30. Qc3 {[%emt 0:05:40]} bxc4 {[%emt 0:01:23]} 31. Bxc4 {[%emt 0:01:46]} Qe4+ {[%emt 0:00:16]} 32. Kb3 {[%emt 0:04:16]} Rb8+ {[%emt 0:00:17]} 0-1